bitfinex/quotes_BTCUSD_20240915
["timestamp","ask_amount","ask_price","bid_price","bid_amount"]
[1726421526156,0.02618821,59923.0,59922.0,0.1938]
[1726421526379,0.166865,59929.0,59923.0,0.166879]
[1726421526641,0.335361,59932.0,59923.0,0.166879]
[1726421526642,0.168506,59932.0,59926.0,0.166871]
[1726421526865,0.168506,59932.0,59928.0,0.166865]
[1726421526866,0.001648,59932.0,59928.0,0.166865]
[1726421527151,0.192228,59930.0,59917.0,0.0052318]
[1726421527386,1.0267,59918.0,59917.0,0.0042318]
[1726421527625,0.692911,59918.0,59917.0,0.0042318]
[1726421527847,0.71910281,59918.0,59917.0,0.0042318]
[1726421528096,0.52687481,59918.0,59917.0,0.0042318]
[1726421528569,0.52687481,59918.0,59917.0,0.0052318]
[1726421529246,0.02619181,59918.0,59917.0,0.0062318]
[1726421529465,0.19308581,59918.0,59917.0,0.0062318]
[1726421529698,0.52687481,59918.0,59917.0,0.0062318]
[1726421530141,0.02619181,59918.0,59917.0,0.0062318]
[1726421530399,0.29536575,59933.0,59917.0,0.0062318]
[1726421530400,0.333703,59934.0,59918.0,0.1103]
[1726421530641,0.333639,59945.0,59931.0,0.166858]
[1726421530868,0.333689,59936.0,59926.0,0.16687]
[1726421531096,0.333689,59936.0,59923.0,0.0334]
[1726421531097,0.335359,59932.0,59923.0,0.0334]
[1726421531351,0.001648,59932.0,59923.0,0.0334]
[1726421531592,0.001648,59932.0,59930.0,0.166859]
[1726421531819,0.001648,59932.0,59931.0,0.166858]
[1726421532071,0.333628,59947.0,59923.0,0.05545675]
[1726421532072,0.02618208,59940.0,59923.0,0.05545675]
[1726421532315,0.02618208,59940.0,59931.0,0.0841]
[1726421532543,0.02618208,59940.0,59932.0,0.333708]
[1726421532768,0.02618208,59940.0,59936.0,0.333689]
[1726421532990,0.02618208,59940.0,59939.0,0.166836]
[1726421533239,0.02618208,59940.0,59929.0,0.333727]
[1726421533240,0.333695,59935.0,59925.0,0.166874]
[1726421533460,0.333695,59935.0,59923.0,0.2234]
[1726421533461,0.166862,59930.0,59923.0,0.19]
[1726421533691,0.333712,59932.0,59924.0,0.166876]
[1726421533914,0.166859,59931.0,59925.0,0.166874]
[1726421534147,0.333708,59933.0,59919.0,0.3062]
[1726421534405,0.333731,59929.0,59921.0,0.166885]
[1726421534624,0.333731,59929.0,59925.0,0.002]
[1726421534625,0.166872,59927.0,59925.0,0.002]
[1726421535975,0.166872,59927.0,59922.0,0.166883]
[1726421536205,0.166872,59927.0,59925.0,0.016]
[1726421536206,0.167872,59927.0,59925.0,0.016]
[1726421536644,0.166872,59927.0,59922.0,0.166883]
[1726421536859,0.003,59927.0,59916.0,0.333796]
[1726421537092,0.005,59927.0,59912.0,0.000824]
[1726421537345,0.166891,59920.0,59914.0,0.166904]
[1726421537590,0.26836575,59927.0,59912.0,0.000824]
[1726421537812,0.27036575,59927.0,59912.0,0.000824]
[1726421538036,0.166894,59918.0,59912.0,0.000824]
[1726421538521,0.333767,59922.0,59912.0,0.000824]
[1726421538522,0.16689,59920.0,59914.0,0.166905]
[1726421538767,0.333767,59922.0,59913.0,0.333812]
[1726421539003,0.166885,59922.0,59916.0,0.166898]
[1726421539250,0.166885,59922.0,59913.0,0.333812]
[1726421539251,0.166885,59922.0,59917.0,0.1711278]
[1726421539482,0.166885,59922.0,59917.0,0.1761278]
[1726421539714,0.3599411,59925.0,59917.0,0.1761278]
[1726421539715,0.166881,59923.0,59918.0,0.166894]
[1726421540403,0.0261861,59925.0,59918.0,0.333787]
[1726421540638,0.16686,59931.0,59921.0,0.19]
[1726421540896,0.333687,59937.0,59927.0,0.166868]
[1726421540897,0.166856,59932.0,59927.0,0.166868]
[1726421541132,0.02618529,59936.0,59921.0,0.19]
[1726421541399,0.02618529,59936.0,59931.0,0.166856]
[1726421541614,0.02618529,59936.0,59917.0,0.3440268]
[1726421541615,0.26536575,59932.0,59917.0,0.0102318]
[1726421541833,0.333773,59921.0,59917.0,0.0042318]
[1726421542056,0.166893,59919.0,59918.0,0.003]
[1726421542287,0.26536575,59926.0,59918.0,0.002]
[1726421542507,0.16689,59920.0,59917.0,0.0042318]
[1726421542736,0.166894,59918.0,59917.0,0.0052318]
[1726421542949,0.500683,59918.0,59917.0,0.0052318]
[1726421543166,0.166894,59918.0,59917.0,0.0052318]
[1726421543451,0.16689,59920.0,59917.0,0.0052318]
[1726421543674,0.19306561,59925.0,59917.0,0.0042318]
[1726421543914,0.19306561,59925.0,59918.0,0.004]
[1726421543915,0.02618861,59925.0,59918.0,0.004]
[1726421545023,0.02618861,59925.0,59917.0,0.0042318]
[1726421545024,0.166875,59925.0,59917.0,0.0042318]
[1726421545276,0.166875,59925.0,59919.0,0.166889]
[1726421545508,0.333694,59936.0,59918.0,0.19]
[1726421545734,0.166867,59928.0,59922.0,0.166881]
[1726421545963,0.002,59925.0,59923.0,0.16688]
[1726421546182,0.333673,59939.0,59918.0,0.19]
[1726421546183,0.333743,59927.0,59918.0,0.166894]
[1726421546399,0.333743,59927.0,59919.0,0.166891]
[1726421546626,0.166878,59924.0,59919.0,0.166891]
[1726421546839,0.166879,59924.0,59918.0,0.166892]
[1726421547063,0.166879,59924.0,59919.0,0.16689]
[1726421547557,0.166881,59923.0,59918.0,0.166894]
[1726421547793,0.333746,59926.0,59919.0,0.166891]
[1726421547794,0.166876,59925.0,59919.0,0.166891]
[1726421548013,0.333738,59928.0,59917.0,0.0042318]
[1726421548238,0.02618633,59922.0,59917.0,0.0042318]
[1726421548456,0.02618633,59922.0,59918.0,0.166894]
[1726421549348,0.02618633,59922.0,59920.0,0.166889]
[1726421549554,0.02618633,59922.0,59918.0,0.166893]
[1726421549762,0.02618633,59922.0,59919.0,0.166889]
[1726421549984,0.02618633,59922.0,59917.0,0.1711278]
[1726421550202,0.02618633,59922.0,59918.0,0.166894]
[1726421550424,0.166886,59921.0,59917.0,0.1711288]
[1726421550642,0.02618633,59922.0,59918.0,0.001]
[1726421551081,0.02618633,59922.0,59917.0,0.1711278]
[1726421551311,0.02618633,59922.0,59918.0,0.166894]
[1726421551524,0.02618633,59922.0,59920.0,0.166888]
[1726421551764,0.02618633,59922.0,59921.0,0.500658]
[1726421551986,0.166859,59931.0,59920.0,0.26536575]
[1726421552205,0.333684,59937.0,59930.0,0.166859]
[1726421552206,0.166847,59936.0,59930.0,0.166859]
[1726421552435,0.333684,59937.0,59930.0,0.166859]
[1726421552661,0.166849,59935.0,59930.0,0.166859]
[1726421552886,0.02618516,59939.0,59931.0,0.500575]
[1726421553129,0.02618516,59939.0,59931.0,0.834292]
[1726421553358,0.002648,59932.0,59931.0,0.834292]
[1726421553588,0.001648,59940.0,59939.0,0.166836]
[1726421553852,0.001648,59940.0,59924.0,0.0334]
[1726421553853,0.26536575,59936.0,59924.0,0.0334]
[1726421554074,0.166867,59928.0,59924.0,0.0334]
[1726421554296,0.333717,59931.0,59924.0,0.0334]
[1726421554513,0.166865,59929.0,59924.0,0.0334]
[1726421555177,0.166865,59929.0,59922.0,0.0334]
[1726421555178,0.333728,59929.0,59922.0,0.0334]
[1726421555401,0.333695,59935.0,59924.0,0.004]
[1726421555628,0.500615,59927.0,59924.0,0.004]
[1726421555848,0.333744,59927.0,59924.0,0.01]
[1726421556064,0.166875,59925.0,59924.0,0.004]
[1726421556304,0.166871,59927.0,59924.0,0.004]
[1726421556524,0.002,59929.0,59924.0,0.170877]
[1726421556738,0.333721,59931.0,59924.0,0.166877]
[1726421556982,0.166865,59929.0,59924.0,0.006]
[1726421557195,0.333685,59937.0,59927.0,0.166869]
[1726421557196,0.166856,59932.0,59927.0,0.166869]
[1726421557441,0.511748,59940.0,59925.0,0.166873]
[1726421557442,0.333704,59934.0,59925.0,0.166873]
[1726421557704,0.166859,59931.0,59927.0,0.166867]
[1726421557931,0.166854,59933.0,59921.0,0.0334]
[1726421558157,0.02618315,59939.0,59925.0,0.3253]
[1726421558383,0.166849,59935.0,59930.0,0.16686]
[1726421558618,0.166849,59935.0,59927.0,0.333736]
[1726421558619,0.166845,59936.0,59931.0,0.166858]
[1726421559263,0.166845,59936.0,59932.0,0.166855]
[1726421559487,0.001648,59940.0,59923.0,0.166879]
[1726421559711,0.166861,59930.0,59918.0,0.4665]
[1726421559939,0.166857,59932.0,59927.0,0.166869]
[1726421560394,0.333711,59933.0,59925.0,0.166874]
[1726421560613,0.166859,59931.0,59926.0,0.166871]
[1726421561069,0.166859,59931.0,59924.0,0.333753]
[1726421561070,0.166859,59931.0,59927.0,0.166869]
[1726421561289,0.001648,59940.0,59924.0,0.000824]
[1726421561512,0.166861,59931.0,59927.0,0.166868]
[1726421561738,0.170504,59932.0,59927.0,0.166868]
[1726421561968,0.170504,59932.0,59924.0,0.000824]
[1726421561969,0.003648,59932.0,59924.0,0.000824]
[1726421562235,0.003648,59932.0,59927.0,0.166867]
[1726421562489,0.004,59931.0,59927.0,0.166867]
[1726421562726,0.170506,59932.0,59927.0,0.166867]
[1726421562964,0.170506,59932.0,59925.0,0.333745]
[1726421562965,0.16686,59931.0,59925.0,0.33375]
[1726421563215,0.16886,59931.0,59927.0,0.167868]
[1726421563449,0.16886,59931.0,59927.0,0.166868]
[1726421563693,0.004,59931.0,59924.0,0.000824]
[1726421563934,0.170859,59931.0,59924.0,0.000824]
[1726421564182,0.004,59931.0,59925.0,0.333748]
[1726421564648,0.004,59931.0,59926.0,0.333743]
[1726421564871,0.002,59931.0,59929.0,0.166863]
[1726421565106,0.006,59931.0,59929.0,0.166863]
[1726421565946,0.001648,59932.0,59929.0,0.166863]
[1726421566170,0.001648,59932.0,59924.0,0.000824]
[1726421566171,0.004,59931.0,59927.0,0.166868]
[1726421566382,0.006,59931.0,59927.0,0.166868]
[1726421566604,0.006,59931.0,59928.0,0.166865]
[1726421566833,0.006,59931.0,59929.0,0.166862]
[1726421567005,0.006,59931.0,59927.0,0.166868]
[1726421567176,0.006,59931.0,59929.0,0.005]
[1726421567775,0.006,59931.0,59924.0,0.000824]
[1726421567987,0.001648,59932.0,59928.0,0.006]
[1726421568192,0.168505,59932.0,59928.0,0.006]
[1726421568404,0.167859,59931.0,59928.0,0.006]
[1726421568623,0.166864,59929.0,59928.0,0.006]
[1726421568838,0.500592,59929.0,59928.0,0.006]
[1726421569045,0.166864,59929.0,59928.0,0.006]
[1726421569249,0.166867,59928.0,59924.0,0.000824]
[1726421569448,0.333735,59928.0,59924.0,0.000824]
[1726421569655,0.166873,59926.0,59924.0,0.000824]
[1726421569862,0.333728,59929.0,59924.0,0.000824]
[1726421569863,0.166868,59928.0,59924.0,0.000824]
[1726421570083,0.16687,59927.0,59924.0,0.000824]
[1726421570284,0.500592,59929.0,59928.0,0.008]
[1726421570880,0.166867,59928.0,59924.0,0.000824]
[1726421571094,0.166867,59928.0,59924.0,0.176701]
[1726421572137,0.166867,59928.0,59924.0,0.018824]
[1726421572138,0.166873,59926.0,59924.0,0.018824]
[1726421572359,0.167868,59928.0,59924.0,0.018824]
[1726421572577,0.167868,59928.0,59924.0,0.009824]
[1726421573009,0.166869,59927.0,59924.0,0.009824]
[1726421573222,0.001,59928.0,59924.0,0.009824]
[1726421573465,0.001,59928.0,59927.0,0.500608]
[1726421573685,0.001648,59932.0,59931.0,0.500575]
[1726421573901,0.001648,59932.0,59931.0,0.834292]
[1726421574352,0.001648,59932.0,59931.0,0.166858]
[1726421575026,0.001648,59932.0,59931.0,0.171858]
[1726421575251,0.001648,59932.0,59931.0,0.505575]
[1726421576598,0.001648,59932.0,59931.0,0.510575]
[1726421577691,0.001648,59940.0,59931.0,0.39836575]
[1726421577908,0.001648,59940.0,59939.0,0.83418]
[1726421579676,0.04960993,59965.0,59939.0,0.03]
[1726421579907,0.04960993,59965.0,59938.0,0.03]
[1726421579908,0.25029827,59965.0,59957.0,0.166785]
[1726421580123,0.166769,59963.0,59955.0,0.166791]
[1726421580354,0.333513,59968.0,59947.0,0.04997883]
[1726421580575,0.333513,59968.0,59957.0,0.166784]
[1726421580576,0.166764,59965.0,59957.0,0.166784]
[1726421580807,0.333513,59968.0,59958.0,0.166781]
[1726421581503,0.333534,59964.0,59953.0,0.166796]
[1726421581776,0.333534,59964.0,59942.0,0.1]
[1726421581777,0.166801,59952.0,59942.0,0.1]
[1726421582046,0.364246,59972.0,59939.0,0.005]
[1726421582047,0.333585,59955.0,59944.0,0.166822]
[1726421582260,0.333628,59948.0,59935.0,0.333691]
[1726421582486,0.5155,59954.0,59931.0,0.04997883]
[1726421582487,0.26536575,59939.0,59931.0,0.04997883]
[1726421582717,0.26536575,59939.0,59924.0,0.05080283]
[1726421582949,0.33367,59940.0,59930.0,0.16686]
[1726421582950,0.166846,59936.0,59930.0,0.16686]
[1726421583184,0.166841,59938.0,59931.0,0.166856]
[1726421583422,0.166835,59940.0,59933.0,0.166852]
[1726421583647,0.166835,59940.0,59929.0,0.333726]
[1726421583648,0.33365,59943.0,59931.0,0.166856]
[1726421583894,0.166843,59937.0,59931.0,0.169856]
[1726421584110,0.26536575,59944.0,59932.0,0.33371]
[1726421584334,0.166834,59940.0,59933.0,0.166851]
[1726421584555,0.166836,59939.0,59933.0,0.166851]
[1726421584810,0.166836,59939.0,59934.0,0.166849]
[1726421585024,0.333646,59944.0,59937.0,0.166841]
[1726421585250,0.166829,59942.0,59937.0,0.166841]
[1726421585911,0.02617957,59946.0,59937.0,0.166841]
[1726421586138,0.007,59939.0,59937.0,0.166841]
[1726421586372,0.007,59939.0,59937.0,0.001]
[1726421586799,0.007,59939.0,59935.0,0.166847]
[1726421587023,0.007,59939.0,59937.0,0.167841]
[1726421587286,0.166825,59943.0,59937.0,0.167841]
[1726421587739,0.011,59942.0,59937.0,0.168841]
[1726421587977,0.177829,59942.0,59937.0,0.167841]
[1726421588243,0.177829,59942.0,59937.0,0.001]
[1726421588244,0.007,59939.0,59937.0,0.001]
[1726421588507,0.166834,59940.0,59935.0,0.166847]
[1726421588749,0.333641,59945.0,59937.0,0.16784]
[1726421588750,0.006,59939.0,59937.0,0.16784]
[1726421588965,0.006,59939.0,59934.0,0.333695]
[1726421589182,0.006,59939.0,59933.0,0.000822]
[1726421589183,0.012,59943.0,59942.0,0.166827]
[1726421589397,0.012,59943.0,59942.0,0.146827]
[1726421590499,0.166814,59947.0,59942.0,0.166827]
[1726421590935,0.335255,59950.0,59938.0,0.333678]
[1726421591170,0.335255,59950.0,59942.0,0.166826]
[1726421591171,0.166811,59948.0,59942.0,0.166826]
[1726421591390,0.335255,59950.0,59942.0,0.166827]
[1726421591391,0.002,59943.0,59942.0,0.166827]
[1726421591847,0.002,59943.0,59940.0,0.166831]
[1726421592063,0.002,59943.0,59942.0,0.001]
[1726421592283,0.166819,59945.0,59935.0,0.166846]
[1726421592284,0.166834,59940.0,59935.0,0.166846]
[1726421592534,0.166834,59940.0,59936.0,0.166844]
[1726421592751,0.166828,59942.0,59937.0,0.16684]
[1726421593194,0.166828,59942.0,59935.0,0.333694]
[1726421593195,0.166831,59941.0,59935.0,0.500539]
[1726421593420,0.166835,59940.0,59933.0,0.000822]
[1726421593650,0.166835,59940.0,59935.0,0.166846]
[1726421593907,0.166835,59940.0,59933.0,0.000822]
[1726421593908,0.166835,59940.0,59936.0,0.166844]
[1726421594156,0.001,59943.0,59936.0,0.166844]
[1726421594157,0.166831,59941.0,59936.0,0.166844]
[1726421594881,0.166831,59941.0,59937.0,0.004]
[1726421595392,0.166831,59941.0,59940.0,0.003]
[1726421595601,0.166831,59941.0,59936.0,0.172844]
[1726421595810,0.166831,59941.0,59936.0,0.178844]
[1726421596017,0.333654,59943.0,59936.0,0.006]
[1726421596218,0.166834,59940.0,59935.0,0.166846]
[1726421596440,0.166834,59940.0,59937.0,0.012]
[1726421596680,0.166838,59939.0,59937.0,0.012]
[1726421596889,0.166833,59940.0,59937.0,0.012]
[1726421597104,0.166825,59943.0,59938.0,0.166838]
[1726421597313,0.333623,59948.0,59938.0,0.333677]
[1726421597572,0.166824,59944.0,59938.0,0.166838]
[1726421597849,0.101644,59950.0,59939.0,0.333668]
[1726421598061,0.166817,59946.0,59941.0,0.166828]
[1726421598942,0.333629,59947.0,59939.0,0.33367]
[1726421599225,0.333629,59947.0,59938.0,0.002]
[1726421599435,0.101644,59950.0,59935.0,0.166847]
[1726421599436,0.166833,59940.0,59935.0,0.166847]
[1726421599662,0.166833,59940.0,59934.0,0.333698]
[1726421599885,0.500488,59942.0,59940.0,0.000822]
[1726421600103,0.502132,59942.0,59940.0,0.000822]
[1726421600348,0.16683,59941.0,59940.0,0.000822]
[1726421601204,0.001644,59942.0,59940.0,0.167654]
[1726421601417,0.001644,59942.0,59940.0,0.000822]
[1726421602204,0.168472,59942.0,59940.0,0.006822]
[1726421602807,0.168472,59942.0,59940.0,0.000822]
[1726421603029,0.168472,59942.0,59940.0,0.004822]
[1726421603242,0.168471,59942.0,59940.0,0.004822]
[1726421603459,0.001644,59942.0,59940.0,0.004822]
[1726421604296,0.001644,59942.0,59940.0,0.008822]
[1726421605358,0.168472,59942.0,59940.0,0.008822]
[1726421607562,0.16683,59941.0,59940.0,0.008822]
[1726421608838,0.001644,59942.0,59940.0,0.004822]
[1726421609049,0.001644,59942.0,59940.0,0.009822]
[1726421609367,0.168472,59942.0,59940.0,0.005822]
[1726421609578,0.500491,59941.0,59940.0,0.005822]
[1726421609779,0.500491,59941.0,59940.0,0.000822]
[1726421610216,0.500491,59941.0,59940.0,0.004822]
[1726421610416,0.500491,59941.0,59940.0,0.000822]
[1726421610841,0.834152,59941.0,59940.0,0.006822]
[1726421611038,1.02693195,59941.0,59940.0,0.006822]
[1726421611438,0.500491,59941.0,59940.0,0.006822]
[1726421611607,0.500491,59941.0,59940.0,0.011822]
[1726421611824,0.834152,59941.0,59940.0,0.011822]
[1726421613774,0.834152,59941.0,59933.0,0.000822]
[1726421613775,0.83425,59934.0,59933.0,0.000822]
[1726421613995,1.02702995,59934.0,59933.0,0.000822]
[1726421614688,0.83425,59934.0,59933.0,0.000822]
[1726421614904,0.42685954,59941.0,59933.0,0.013822]
[1726421615117,0.333678,59938.0,59933.0,0.013822]
[1726421615325,0.333684,59937.0,59933.0,0.000822]
[1726421615553,0.1,59940.0,59933.0,0.000822]
[1726421615826,0.001,59934.0,59933.0,0.167674]
[1726421616043,0.001,59934.0,59933.0,0.501379]
[1726421616260,0.001644,59942.0,59938.0,0.166838]
[1726421616470,0.168472,59942.0,59936.0,0.166843]
[1726421616687,0.166833,59941.0,59933.0,0.334527]
[1726421616904,0.001644,59942.0,59935.0,0.166845]
[1726421617127,0.001644,59942.0,59936.0,0.166843]
[1726421617355,0.001644,59942.0,59938.0,0.001]
[1726421617356,0.005644,59942.0,59938.0,0.001]
[1726421617578,0.166831,59941.0,59938.0,0.001]
[1726421617999,0.005644,59942.0,59938.0,0.167838]
[1726421618279,0.166831,59941.0,59938.0,0.001]
[1726421618472,0.03282336,59942.0,59938.0,0.001]
[1726421618684,0.02882336,59942.0,59933.0,0.334527]
[1726421618929,0.02782336,59942.0,59938.0,0.166837]
[1726421619159,0.02782336,59942.0,59938.0,0.003]
[1726421619656,0.02782336,59942.0,59940.0,0.166831]
[1726421619918,0.02782336,59942.0,59941.0,0.16683]
[1726421621635,0.02782336,59942.0,59941.0,0.500491]
[1726421621861,0.02782336,59942.0,59941.0,0.16683]
[1726421622114,0.02782336,59942.0,59941.0,0.500491]
[1726421622370,0.02782336,59942.0,59941.0,0.505491]
[1726421623024,0.02782336,59942.0,59941.0,0.005]
[1726421623251,0.02782336,59942.0,59941.0,0.17183]
[1726421624974,0.001644,59942.0,59941.0,0.505491]
[1726421625218,0.001644,59942.0,59941.0,0.17183]
[1726421626765,0.168471,59942.0,59941.0,0.005]
[1726421627638,0.001644,59942.0,59941.0,0.005]
[1726421628706,0.168471,59942.0,59941.0,0.005]
[1726421628904,0.001644,59942.0,59941.0,0.005]
[1726421630011,0.168471,59942.0,59941.0,0.005]
[1726421630217,0.835781,59942.0,59941.0,0.005]
[1726421630419,1.02857798,59942.0,59941.0,0.005]
[1726421630563,0.835781,59942.0,59941.0,0.005]
[1726421631458,0.502126,59942.0,59941.0,0.005]
[1726421631663,0.168471,59942.0,59941.0,0.005]
[1726421631862,0.502126,59942.0,59941.0,0.005]
[1726421634755,0.835781,59942.0,59941.0,0.005]
[1726421635404,0.502126,59942.0,59941.0,0.005]
[1726421636701,0.168471,59942.0,59941.0,0.005]
[1726421639728,0.001644,59942.0,59941.0,0.005]
[1726421639944,0.168471,59942.0,59941.0,0.005]
[1726421640806,0.001644,59942.0,59941.0,0.005]
[1726421641026,0.168471,59942.0,59941.0,0.005]
[1726421641212,0.001644,59942.0,59941.0,0.005]
[1726421644572,0.001644,59942.0,59941.0,0.17183]
[1726421645052,0.001644,59942.0,59941.0,0.005]
[1726421645315,0.001644,59942.0,59941.0,0.839152]
[1726421648756,0.001644,59950.0,59949.0,0.500424]
[1726421648983,0.001644,59950.0,59949.0,1.36045298]
[1726421649219,0.001644,59950.0,59949.0,1.43555496]
[1726421649427,0.001644,59950.0,59949.0,1.41049818]
[1726421650314,0.001644,59950.0,59949.0,1.44255496]
[1726421650537,0.001644,59950.0,59949.0,1.36745298]
[1726421650752,0.002644,59950.0,59949.0,1.72417052]
[1726421651216,0.002644,59950.0,59949.0,1.63171682]
[1726421651424,0.002644,59950.0,59949.0,1.37445298]
[1726421652077,0.002644,59950.0,59949.0,0.56442402]
[1726421652291,0.002644,59950.0,59949.0,0.514424]
[1726421652508,0.002644,59950.0,59949.0,0.84804]
[1726421652947,0.002644,59950.0,59949.0,0.89804002]
[1726421653391,0.002644,59950.0,59949.0,0.84804]
[1726421653610,0.002644,59950.0,59949.0,1.23165602]
[1726421654046,0.002644,59950.0,59949.0,1.41355602]
[1726421654269,0.002644,59950.0,59949.0,1.47000602]
[1726421654505,0.002644,59950.0,59949.0,1.420006]
[1726421654716,0.002644,59950.0,59949.0,1.731206]
[1726421655141,0.0005,59962.0,59961.0,0.500325]
[1726421656719,0.0005,59962.0,59961.0,0.841875]
[1726421657388,0.0005,59962.0,59961.0,0.848875]
[1726421657607,0.0005,59962.0,59961.0,1.182425]
[1726421660509,0.002144,59962.0,59961.0,1.182425]
[1726421663315,0.002144,59962.0,59961.0,1.175425]
[1726421663540,0.002144,59962.0,59961.0,1.184425]
[1726421664406,0.002144,59962.0,59961.0,1.176425]
[1726421664642,0.002144,59962.0,59961.0,1.184425]
[1726421665057,0.002144,59962.0,59961.0,1.176425]
[1726421665251,0.002144,59962.0,59961.0,1.172425]
[1726421665462,0.002144,59962.0,59961.0,1.167425]
[1726421665687,0.002144,59962.0,59961.0,1.172425]
[1726421665899,0.002144,59962.0,59961.0,1.177425]
[1726421666108,0.002144,59962.0,59961.0,1.172425]
[1726421667092,0.002144,59962.0,59961.0,1.177425]
[1726421670380,0.002144,59962.0,59961.0,0.843875]
[1726421672633,0.002144,59962.0,59961.0,1.177425]
[1726421673608,0.002144,59962.0,59961.0,1.233875]
[1726421674064,0.002144,59962.0,59961.0,1.36022849]
[1726421674588,0.002144,59962.0,59961.0,1.35022849]
[1726421674807,0.002144,59962.0,59961.0,1.36422849]
[1726421675023,0.002144,59962.0,59961.0,1.38814648]
[1726421675727,0.002144,59962.0,59961.0,1.40553093]
[1726421676015,0.002144,59962.0,59961.0,1.45433447]
[1726421676232,0.002144,59962.0,59961.0,1.47171934]
[1726421677111,0.002144,59962.0,59961.0,1.45433447]
[1726421677356,0.002144,59962.0,59961.0,1.47171012]
[1726421677801,0.002144,59962.0,59961.0,1.47171008]
[1726421678015,0.002144,59962.0,59961.0,0.93570061]
[1726421678441,0.002144,59962.0,59961.0,1.26925061]
[1726421678659,0.002144,59962.0,59961.0,1.251875]
[1726421679313,0.002144,59962.0,59961.0,1.26925061]
[1726421680193,0.002144,59962.0,59961.0,1.46179209]
[1726421681096,0.002144,59962.0,59961.0,1.44441648]
[1726421681331,0.002144,59962.0,59961.0,1.46183654]
[1726421684294,0.002144,59962.0,59961.0,2.17338654]
[1726421684560,0.001646,59972.0,59971.0,1.41622048]
[1726421685074,0.001646,59972.0,59971.0,1.43361522]
[1726421685545,0.001646,59972.0,59971.0,1.46361522]
[1726421686201,0.001646,59972.0,59971.0,1.47761522]
[1726421686462,0.001646,59972.0,59971.0,1.46361522]
[1726421686954,0.001646,59972.0,59971.0,1.47761522]
[1726421687214,0.001646,59972.0,59971.0,1.81110922]
[1726421687676,0.001646,59972.0,59971.0,1.82510922]
[1726421687944,0.001646,59972.0,59971.0,1.49161522]
[1726421688416,0.001646,59972.0,59971.0,1.52743241]
[1726421688652,0.001646,59972.0,59971.0,1.49161522]
[1726421689156,0.001646,59972.0,59971.0,1.50138382]
[1726421689394,0.001646,59972.0,59971.0,1.50130223]
[1726421690629,0.001646,59972.0,59971.0,1.55111942]
[1726421691410,0.001646,59972.0,59971.0,1.53380627]
[1726421691650,0.001646,59972.0,59971.0,1.50133872]
[1726421691891,0.001646,59972.0,59971.0,1.47133872]
[1726421692134,0.001646,59972.0,59971.0,0.528241]
[1726421692679,0.001646,59972.0,59971.0,0.861735]
[1726421693397,0.001646,59972.0,59971.0,0.847735]
[1726421693653,0.001646,59972.0,59971.0,0.833735]
[1726421693905,0.001646,59972.0,59971.0,0.861735]
[1726421696257,0.001646,59972.0,59971.0,1.195229]
[1726421696506,0.001646,59972.0,59971.0,1.44422048]
[1726421696741,0.001646,59972.0,59971.0,1.49413636]
[1726421697004,0.001646,59972.0,59971.0,1.44422048]
[1726421697515,0.001646,59972.0,59971.0,1.5190891]
[1726421697783,0.001646,59972.0,59971.0,1.44422048]
[1726421698697,0.001646,59972.0,59971.0,1.5190891]
[1726421698916,0.001646,59972.0,59971.0,1.49414762]
[1726421699115,0.001646,59972.0,59971.0,1.5190891]
[1726421699376,0.001646,59972.0,59971.0,1.78414002]
[1726421699623,0.001646,59972.0,59971.0,1.79393619]
[1726421700515,0.001646,59972.0,59971.0,1.71909328]
[1726421700990,0.001646,59972.0,59971.0,1.16026163]
[1726421701480,0.001646,59972.0,59971.0,0.61163601]
[1726421701743,0.001646,59972.0,59971.0,0.97010014]
[1726421701962,0.001646,59972.0,59971.0,0.94512867]
[1726421702175,0.001646,59972.0,59971.0,0.895185]
[1726421702388,0.001646,59972.0,59971.0,0.94512867]
[1726421702598,0.001646,59972.0,59971.0,0.895185]
[1726421703075,0.001646,59972.0,59971.0,0.94513693]
[1726421703524,0.001646,59972.0,59971.0,0.27814893]
[1726421703744,0.001646,59972.0,59971.0,0.24469893]
[1726421704649,0.001646,59972.0,59971.0,0.57819293]
[1726421705773,0.001646,59972.0,59971.0,0.24469893]
[1726421705991,0.001646,59972.0,59971.0,0.528241]
[1726421706237,0.001646,59972.0,59971.0,0.861735]
[1726421706468,0.001646,59972.0,59971.0,1.12693165]
[1726421707383,0.001646,59972.0,59971.0,1.22680641]
[1726421707830,0.001646,59972.0,59971.0,1.65296713]
[1726421709235,0.001646,59972.0,59971.0,1.75284189]
[1726421709705,0.001646,59972.0,59971.0,1.65296713]
[1726421710358,0.001646,59972.0,59971.0,1.75284189]
[1726421711245,0.001646,59972.0,59971.0,1.56030041]
[1726421713231,0.001646,59972.0,59971.0,1.56066912]
[1726421713449,0.001646,59972.0,59971.0,1.22717512]
[1726421713665,0.001646,59972.0,59971.0,0.36845734]
[1726421713882,0.001646,59972.0,59971.0,0.0779894]
[1726421713883,0.483346,59972.0,59971.0,0.0779894]
[1726421714103,0.65009,59972.0,59971.0,0.028]
[1726421714322,0.983578,59972.0,59971.0,0.028]
[1726421714584,0.483346,59972.0,59963.0,0.0499894]
[1726421714802,0.333507,59969.0,59962.0,0.2175814]
[1726421715030,0.52604048,59971.0,59962.0,0.2175814]
[1726421715031,0.166766,59965.0,59962.0,0.000822]
[1726421715244,0.166762,59966.0,59962.0,0.167594]
[1726421715457,0.166762,59966.0,59962.0,0.000822]
[1726421716533,0.52603948,59971.0,59963.0,0.166769]
[1726421716755,0.52603948,59971.0,59962.0,0.000822]